fUST/lending_fUST_20240813
["ID","MTS","AMOUNT","RATE_DAILY","PERIOD"]
[334723369,1723507863800,-620.74,0.00016066,2]
[334723370,1723507863811,-718.15,0.00016066,2]
[334723371,1723507863820,-500.0,0.00016066,2]
[334723372,1723507863829,-1075.54,0.00016066,2]
[334723373,1723507863838,-550.70561576,0.00016066,2]
[334723374,1723507863847,-1420.19,0.00016066,2]
[334723375,1723507863857,-1225.82,0.00016066,2]
[334723376,1723507863866,-1051.48,0.00016066,2]
[334723377,1723507863875,-500.0,0.00016066,2]
[334723378,1723507863885,-6792.66,0.00016066,2]
[334723379,1723507863894,-500.0,0.00016066,2]
[334723380,1723507863904,-500.0,0.00016066,2]
[334723381,1723507863914,-500.0,0.00016066,2]
[334723382,1723507863923,-1340.35,0.00016066,2]
[334723383,1723507863932,-500.0,0.00016066,2]
[334723384,1723507863941,-619.41,0.00016066,2]
[334723385,1723507863960,-774.02,0.00016066,2]
[334723386,1723507863970,-575.86,0.00016066,2]
[334723387,1723507863980,-1466.57,0.00016066,2]
[334723388,1723507863990,-500.0,0.00016066,2]
[334723389,1723507864000,-1374.2,0.00016066,2]
[334723390,1723507864009,-866.13,0.00016066,2]
[334723391,1723507864019,-500.0,0.00016066,2]
[334723392,1723507864028,-550.0,0.00016066,2]
[334723393,1723507864037,-2072.3,0.00016066,2]
[334723394,1723507864046,-1212.29,0.00016066,2]
[334723395,1723507864055,-979.49,0.00016066,2]
[334723396,1723507864064,-3000.0,0.0001607,2]
[334723397,1723507864073,-151.52993893,0.00016076,2]
[334723398,1723507864082,-500.0,0.00016076,2]
[334723399,1723507864092,-655.48,0.00016076,2]
[334723400,1723507864101,-3000.0,0.0001608,2]
[334723401,1723507864110,-3000.0,0.0001609,2]
[334723402,1723507864119,-600.0,0.00016095,2]
[334723403,1723507864128,-3000.0,0.000161,2]
[334723404,1723507864138,-3000.0,0.0001611,2]
[334723405,1723507864147,-3000.0,0.0001612,2]
[334723406,1723507864157,-3000.0,0.0001613,2]
[334723407,1723507864166,-3000.0,0.0001614,2]
[334723408,1723507864175,-3000.0,0.0001615,2]
[334723409,1723507864184,-4858.54444,0.0001616,2]
[334723410,1723507864196,-1204.92,0.00016219,2]
[334723411,1723507864205,-891.86,0.00016219,2]
[334723412,1723507864214,-766.88,0.00016219,2]
[334723413,1723507864224,-465.03827808,0.0001622,2]
[334723414,1723507864234,-600.0,0.00016256,2]
[334723415,1723507864245,-500.0,0.00016318,2]
[334723416,1723507864255,-2071.47,0.00016318,2]
[334723417,1723507864266,-7252.69661797,0.00016318,2]
[334723418,1723507865514,-486.02338203,0.00016318,2]
[334723419,1723507865524,-1399.62,0.00016318,2]
[334723420,1723507865533,-891.99,0.00016328,2]
[334723421,1723507865542,-500.0,0.00016328,2]
[334723422,1723507865551,-1311.96341884,0.00016328,2]
[334723423,1723507865833,-151.0,0.00014696,2]
[334723424,1723507865842,-3219.66658116,0.00016328,2]
[334723425,1723507865854,-2374.13036182,0.00016328,2]
[334723426,1723507865982,-1527.31,0.00014136,2]
[334723427,1723507865993,-500.0,0.00014137,2]
[334723428,1723507866003,-500.0,0.00014137,2]
[334723429,1723507866012,-151.0,0.00014147,2]
[334723430,1723507866022,-151.0,0.00014148,2]
[334723431,1723507866031,-151.0,0.00014148,2]
[334723432,1723507866041,-151.0,0.00014333,2]
[334723433,1723507866052,-1527.31,0.0001441,2]
[334723434,1723507866061,-194.48696844,0.00014411,2]
[334723435,1723507866071,-1527.31,0.00014684,2]
[334723436,1723507866080,-1527.31,0.00014958,2]
[334723437,1723507866089,-2198.06963818,0.00016328,2]
[334723438,1723507866099,-1413.72,0.00016328,2]
[334723439,1723507866108,-1535.96,0.00016328,2]
[334723440,1723507866118,-1232.7,0.00016328,2]
[334723441,1723507866129,-1581.75,0.00016328,2]
[334723442,1723507866139,-500.0,0.00016328,2]
[334723443,1723507866150,-1660.52,0.00016328,2]
[334723444,1723507866159,-500.0,0.00016328,2]
[334723445,1723507866169,-1077.89,0.00016328,2]
[334723446,1723507866178,-7880.3,0.00016328,2]
[334723447,1723507866187,-500.0,0.00016329,2]
[334723448,1723507866197,-500.0,0.00016329,2]
[334723449,1723507866209,-674.1,0.00016329,2]
[334723450,1723507866219,-500.0,0.00016329,2]
[334723451,1723507866231,-577.84,0.00016329,2]
[334723452,1723507866243,-699.4,0.00016329,2]
[334723453,1723507866254,-629.92,0.00016329,2]
[334723454,1723507866263,-500.0,0.00016329,2]
[334723455,1723507866272,-500.0,0.00016329,2]
[334723456,1723507866283,-500.0,0.00016329,2]
[334723457,1723507866294,-838.38,0.00016329,2]
[334723458,1723507866304,-500.0,0.00016329,2]
[334723459,1723507866313,-500.0,0.00016329,2]
[334723460,1723507866325,-500.0,0.00016329,2]
[334723461,1723507866335,-527.51,0.00016329,2]
[334723462,1723507866345,-500.0,0.00016329,2]
[334723463,1723507866357,-899.59,0.00016329,2]
[334723464,1723507866366,-612.26889492,0.00016329,2]
[334723465,1723507866375,-662.72,0.00016329,2]
[334723466,1723507866384,-500.0,0.00016329,2]
[334723467,1723507866394,-497.03434909,0.00016329,2]
[334723468,1723507866403,-930.41,0.00016329,2]
[334723469,1723507866413,-1528.05,0.00016329,2]
[334723470,1723507866422,-796.66,0.00016329,2]
[334723471,1723507866430,-1373.35,0.00016329,2]
[334723472,1723507866440,-1120.59,0.00016329,2]
[334723473,1723507866449,-843.18,0.00016329,2]
[334723474,1723507866459,-1471.67,0.00016329,2]
[334723475,1723507866469,-500.0,0.00016329,2]
[334723476,1723507866479,-500.0,0.00016329,2]
[334723477,1723507866491,-912.85,0.00016329,2]
[334723478,1723507866500,-1170.09,0.00016329,2]
[334723479,1723507866510,-873.34,0.00016329,2]
[334723480,1723507866519,-500.0,0.00016329,2]
[334723481,1723507866528,-639.61,0.00016329,2]
[334723482,1723507866537,-4137.7,0.00016329,2]
[334723483,1723507866546,-500.0,0.00016329,2]
[334723484,1723507866555,-935.03,0.00016329,2]
[334723485,1723507866564,-1462.61,0.00016329,2]
[334723486,1723507866573,-633.08,0.00016329,2]
[334723487,1723507866582,-680.88,0.00016329,2]
[334723488,1723507866591,-768.08,0.00016329,2]
[334723489,1723507866600,-756.12,0.00016329,2]
[334723490,1723507866609,-500.0,0.00016329,2]
[334723491,1723507866619,-500.0,0.00016329,2]
[334723492,1723507866630,-885.75,0.00016329,2]
[334723493,1723507866641,-1515.15,0.00016329,2]
[334723494,1723507866652,-500.0,0.00016329,2]
[334723495,1723507866662,-530.7,0.00016329,2]
[334723496,1723507866671,-638.77,0.00016339,2]
[334723497,1723507866680,-3783.3,0.00016339,2]
[334723498,1723507866689,-354.23779702,0.00016339,2]
[334723499,1723507866704,-500.0,0.00016339,2]
[334723500,1723507866714,-1184.95,0.00016339,2]
[334723501,1723507866723,-500.0,0.00016339,2]
[334723502,1723507866732,-574.45,0.00016339,2]
[334723503,1723507866742,-557.25,0.00016339,2]
[334723504,1723507866751,-1089.69,0.00016339,2]
[334723505,1723507866761,-2080.48,0.00016339,2]
[334723506,1723507866771,-3408.74,0.00016339,2]
[334723507,1723507866781,-1662.81,0.00016339,2]
[334723508,1723507866791,-1141.64,0.00016339,2]
[334723509,1723507866800,-500.0,0.0001634,2]
[334723510,1723507866810,-752.5,0.0001634,2]
[334723511,1723507866819,-362.95398525,0.0001634,2]
[334723512,1723507866828,-500.0,0.0001634,2]
[334723513,1723507866838,-500.0,0.0001634,2]
[334723514,1723507866848,-500.0,0.0001634,2]
[334723515,1723507866857,-989.75,0.0001634,2]
[334723516,1723507866867,-518.52,0.0001634,2]
[334723517,1723507866877,-500.0,0.0001634,2]
[334723518,1723507866887,-500.0,0.0001634,2]
[334723519,1723507866896,-789.14,0.0001634,2]
[334723520,1723507866906,-500.0,0.0001634,2]
[334723521,1723507866915,-695.85,0.0001634,2]
[334723522,1723507866924,-500.0,0.0001634,2]
[334723523,1723507866935,-500.0,0.0001634,2]
[334723524,1723507866946,-500.0,0.0001634,2]
[334723525,1723507866957,-500.0,0.0001634,2]
[334723526,1723507866966,-500.0,0.0001634,2]
[334723527,1723507866975,-500.0,0.0001634,2]
[334723528,1723507866983,-500.0,0.0001634,2]
[334723529,1723507866994,-550.02,0.0001634,2]
[334723530,1723507867003,-500.0,0.0001634,2]
[334723531,1723507867013,-704.31,0.0001634,2]
[334723532,1723507867023,-701.07,0.0001634,2]
[334723533,1723507867032,-500.0,0.0001634,2]
[334723534,1723507867042,-618.22,0.0001634,2]
[334723535,1723507867052,-500.0,0.0001634,2]
[334723536,1723507867062,-688.92,0.0001634,2]
[334723537,1723507867071,-500.0,0.0001634,2]
[334723538,1723507867080,-2423.01,0.0001634,2]
[334723539,1723507867090,-535.05,0.0001634,2]
[334723540,1723507867099,-500.0,0.0001634,2]
[334723541,1723507867108,-1062.16,0.0001634,2]
[334723542,1723507867117,-500.0,0.0001634,2]
[334723543,1723507867127,-500.0,0.0001634,2]
[334723544,1723507867136,-519.53,0.0001634,2]
[334723545,1723507867146,-537.45,0.0001634,2]
[334723546,1723507867157,-500.0,0.0001634,2]
[334723547,1723507867166,-620.74,0.0001634,2]
[334723548,1723507867175,-718.15,0.0001634,2]
[334723549,1723507867184,-500.0,0.0001634,2]
[334723550,1723507867194,-1075.54,0.0001634,2]
[334723551,1723507867205,-1420.19,0.0001634,2]
[334723552,1723507867214,-1225.82,0.0001634,2]
[334723553,1723507867224,-1051.48,0.0001634,2]
[334723554,1723507867235,-500.0,0.0001634,2]
[334723555,1723507867247,-6792.66,0.0001634,2]
[334723556,1723507867257,-500.0,0.0001634,2]
[334723557,1723507867266,-500.0,0.0001634,2]
[334723558,1723507867275,-500.0,0.0001634,2]
[334723559,1723507867285,-1340.35,0.0001634,2]
[334723560,1723507867293,-500.0,0.0001634,2]
[334723561,1723507867303,-619.41,0.0001634,2]
[334723562,1723507867414,-774.02,0.0001634,2]
[334723563,1723507867425,-575.86,0.0001634,2]
[334723564,1723507867434,-1466.57,0.0001634,2]
[334723565,1723507867443,-500.0,0.0001634,2]
[334723566,1723507867455,-1374.2,0.0001634,2]
[334723567,1723507867471,-866.13,0.0001634,2]
[334723568,1723507867480,-500.0,0.0001634,2]
[334723569,1723507867489,-550.0,0.0001634,2]
[334723570,1723507867499,-2072.3,0.0001634,2]
[334723571,1723507867508,-1212.29,0.0001634,2]
[334723572,1723507867517,-979.49,0.0001634,2]
[334723573,1723507867526,-400.0,0.00016342,2]
[334723574,1723507867535,-500.0,0.0001635,2]
[334723575,1723507867545,-655.48,0.0001635,2]
[334723576,1723507867554,-200.0,0.00016438,2]
[334723577,1723507867563,-200.0,0.00016438,2]
[334723578,1723507867573,-200.0,0.00016438,2]
[334723579,1723507867582,-348.7057126,0.00016438,2]
[334723580,1723507867591,-500.0,0.00016438,2]
[334723581,1723507867600,-500.0,0.00016438,2]
[334723582,1723507867609,-500.0,0.00016438,2]
[334723583,1723507867618,-500.0,0.00016438,2]
[334723584,1723507867628,-500.0,0.00016438,2]
[334723585,1723507867637,-500.0,0.00016438,2]
[334723586,1723507867647,-500.0,0.00016438,2]
[334723587,1723507867656,-500.0,0.00016438,2]
[334723588,1723507867666,-500.0,0.00016438,2]
[334723589,1723507867675,-500.0,0.00016438,2]
[334723590,1723507867684,-500.0,0.00016438,2]
[334723591,1723507867694,-500.0,0.00016438,2]
[334723592,1723507867708,-500.0,0.00016438,2]
[334723593,1723507867718,-500.0,0.00016438,2]
[334723594,1723507867728,-500.0,0.00016438,2]
[334723595,1723507867739,-556.99203582,0.00016438,2]
[334723596,1723507867751,-500.0,0.00016438,2]
[334723597,1723507867761,-500.0,0.00016438,2]
[334723598,1723507867771,-500.0,0.00016438,2]
[334723599,1723507867781,-500.0,0.00016438,2]
[334723600,1723507867792,-500.0,0.00016438,2]
[334723601,1723507867801,-500.0,0.00016438,2]
[334723602,1723507867810,-500.0,0.00016438,2]
[334723603,1723507867820,-500.0,0.00016438,2]
[334723604,1723507867831,-153.0,0.00016438,2]
[334723605,1723507867842,-153.0,0.00016438,2]
[334723606,1723507867853,-153.0,0.00016438,2]
[334723607,1723507867862,-153.0,0.00016438,2]
[334723608,1723507867871,-153.0,0.00016438,2]
[334723609,1723507867881,-153.0,0.00016438,2]
[334723610,1723507867891,-153.0,0.00016438,2]
[334723611,1723507867901,-153.0,0.00016438,2]
[334723612,1723507867911,-153.0,0.00016438,2]
[334723613,1723507867920,-153.0,0.00016438,2]
[334723614,1723507867929,-153.0,0.00016438,2]
[334723615,1723507867939,-153.0,0.00016438,2]
[334723616,1723507867950,-153.0,0.00016438,2]
[334723617,1723507867962,-153.0,0.00016438,2]
[334723618,1723507867972,-153.0,0.00016438,2]
[334723619,1723507867984,-153.0,0.00016438,2]
[334723620,1723507867994,-153.0,0.00016438,2]
[334723621,1723507868004,-153.0,0.00016438,2]
[334723622,1723507868014,-153.0,0.00016438,2]
[334723623,1723507868024,-153.0,0.00016438,2]
[334723624,1723507868035,-153.0,0.00016438,2]
[334723625,1723507868046,-153.0,0.00016438,2]
[334723626,1723507868056,-153.0,0.00016438,2]
[334723627,1723507868065,-153.0,0.00016438,2]
[334723628,1723507868077,-153.0,0.00016438,2]
[334723629,1723507868086,-153.0,0.00016438,2]
[334723630,1723507868097,-153.0,0.00016438,2]
[334723631,1723507868107,-153.0,0.00016438,2]
[334723632,1723507868118,-153.0,0.00016438,2]
[334723633,1723507868130,-153.0,0.00016438,2]
[334723634,1723507868140,-153.0,0.00016438,2]
[334723635,1723507868150,-153.0,0.00016438,2]
[334723636,1723507868160,-153.0,0.00016438,2]
[334723637,1723507868171,-153.0,0.00016438,2]
[334723638,1723507868183,-153.0,0.00016438,2]
[334723639,1723507868194,-153.0,0.00016438,2]
[334723640,1723507868204,-153.0,0.00016438,2]
[334723641,1723507868214,-153.0,0.00016438,2]
[334723642,1723507868225,-153.0,0.00016438,2]
[334723643,1723507868237,-153.0,0.00016438,2]
[334723644,1723507868248,-153.0,0.00016438,2]
[334723645,1723507868259,-153.0,0.00016438,2]
[334723646,1723507868268,-153.0,0.00016438,2]
[334723647,1723507868277,-153.0,0.00016438,2]
[334723648,1723507868289,-153.0,0.00016438,2]
[334723649,1723507868299,-153.0,0.00016438,2]
[334723650,1723507868309,-153.0,0.00016438,2]
[334723651,1723507868319,-153.0,0.00016438,2]
[334723652,1723507868329,-153.0,0.00016438,2]
[334723653,1723507868339,-153.0,0.00016438,2]
[334723654,1723507868348,-153.0,0.00016438,2]
[334723655,1723507868357,-153.0,0.00016438,2]
[334723656,1723507868367,-153.0,0.00016438,2]
[334723657,1723507868377,-153.0,0.00016438,2]
[334723658,1723507868387,-153.0,0.00016438,2]
[334723659,1723507868397,-153.0,0.00016438,2]
[334723660,1723507868408,-153.0,0.00016438,2]
[334723661,1723507868418,-153.0,0.00016438,2]
[334723662,1723507868428,-153.0,0.00016438,2]
[334723663,1723507868438,-153.0,0.00016438,2]
[334723664,1723507868448,-153.0,0.00016438,2]
[334723665,1723507868461,-153.0,0.00016438,2]
[334723666,1723507868470,-153.0,0.00016438,2]
[334723667,1723507868480,-153.0,0.00016438,2]
[334723668,1723507868489,-153.0,0.00016438,2]
[334723669,1723507868499,-153.0,0.00016438,2]
[334723670,1723507868508,-153.0,0.00016438,2]
[334723671,1723507868517,-153.0,0.00016438,2]
[334723672,1723507868526,-153.0,0.00016438,2]
[334723673,1723507868536,-153.0,0.00016438,2]
[334723674,1723507868546,-153.0,0.00016438,2]
[334723675,1723507868555,-153.0,0.00016438,2]
[334723676,1723507868565,-153.0,0.00016438,2]
[334723677,1723507868575,-153.0,0.00016438,2]
[334723678,1723507868586,-153.0,0.00016438,2]
[334723679,1723507868595,-153.0,0.00016438,2]
[334723680,1723507868606,-153.0,0.00016438,2]
[334723681,1723507868617,-153.0,0.00016438,2]
[334723682,1723507868628,-153.0,0.00016438,2]
[334723683,1723507868639,-153.0,0.00016438,2]
[334723684,1723507868648,-153.0,0.00016438,2]
[334723685,1723507868658,-153.0,0.00016438,2]
[334723686,1723507868668,-153.0,0.00016438,2]
[334723687,1723507868678,-153.0,0.00016438,2]
[334723688,1723507868687,-153.0,0.00016438,2]
[334723689,1723507868699,-153.0,0.00016438,2]
[334723690,1723507868716,-153.0,0.00016438,2]
[334723691,1723507868725,-153.0,0.00016438,2]
[334723692,1723507868735,-153.0,0.00016438,2]
[334723693,1723507868746,-153.0,0.00016438,2]
[334723694,1723507868756,-153.0,0.00016438,2]
[334723695,1723507868765,-153.0,0.00016438,2]
[334723696,1723507868777,-153.0,0.00016438,2]
[334723697,1723507868787,-153.0,0.00016438,2]
[334723698,1723507868797,-153.0,0.00016438,2]
[334723699,1723507868806,-153.0,0.00016438,2]
[334723700,1723507868816,-153.0,0.00016438,2]
[334723701,1723507868826,-153.0,0.00016438,2]
[334723702,1723507868836,-153.0,0.00016438,2]
[334723703,1723507868846,-153.0,0.00016438,2]
[334723704,1723507868857,-153.0,0.00016438,2]
[334723705,1723507868867,-153.0,0.00016438,2]
[334723706,1723507868877,-153.0,0.00016438,2]
[334723707,1723507868887,-153.0,0.00016438,2]
[334723708,1723507868897,-153.0,0.00016438,2]
[334723709,1723507868907,-153.0,0.00016438,2]
[334723710,1723507868918,-153.0,0.00016438,2]
[334723711,1723507868928,-153.0,0.00016438,2]
[334723712,1723507868938,-153.0,0.00016438,2]
[334723713,1723507868947,-153.0,0.00016438,2]
[334723714,1723507868961,-153.0,0.00016438,2]
[334723715,1723507868971,-153.0,0.00016438,2]
[334723716,1723507868980,-153.0,0.00016438,2]
[334723717,1723507868989,-153.0,0.00016438,2]
[334723718,1723507868998,-153.0,0.00016438,2]
[334723719,1723507869007,-153.0,0.00016438,2]
[334723720,1723507869017,-153.0,0.00016438,2]
[334723721,1723507869026,-153.0,0.00016438,2]
[334723722,1723507869036,-153.0,0.00016438,2]
[334723723,1723507869045,-153.0,0.00016438,2]
[334723724,1723507869054,-153.0,0.00016438,2]
[334723725,1723507869063,-153.0,0.00016438,2]
[334723726,1723507869073,-153.0,0.00016438,2]
[334723727,1723507869081,-153.0,0.00016438,2]
[334723728,1723507869090,-153.0,0.00016438,2]
[334723729,1723507869099,-153.0,0.00016438,2]
[334723730,1723507869108,-153.0,0.00016438,2]
[334723731,1723507869117,-202.0,0.00016438,2]
[334723732,1723507869126,-202.0,0.00016438,2]
[334723733,1723507869136,-202.0,0.00016438,2]
[334723734,1723507869145,-202.0,0.00016438,2]
[334723735,1723507869155,-202.0,0.00016438,2]
[334723736,1723507869164,-202.0,0.00016438,2]
[334723737,1723507869173,-202.0,0.00016438,2]
[334723738,1723507869182,-153.0,0.00016438,2]
[334723739,1723507869191,-153.0,0.00016438,2]
[334723740,1723507869200,-153.0,0.00016438,2]
[334723741,1723507869212,-153.0,0.00016438,2]
[334723742,1723507869221,-153.0,0.00016438,2]
[334723743,1723507869230,-153.0,0.00016438,2]
[334723744,1723507869239,-153.0,0.00016438,2]
[334723745,1723507869248,-153.0,0.00016438,2]
[334723746,1723507869257,-153.0,0.00016438,2]
[334723747,1723507869266,-153.0,0.00016438,2]
[334723748,1723507869275,-153.0,0.00016438,2]
[334723749,1723507869284,-153.0,0.00016438,2]
[334723750,1723507869294,-153.0,0.00016438,2]
[334723751,1723507869303,-153.0,0.00016438,2]
[334723752,1723507869311,-153.0,0.00016438,2]
[334723753,1723507869320,-153.0,0.00016438,2]
[334723754,1723507869330,-153.0,0.00016438,2]
[334723755,1723507869339,-153.0,0.00016438,2]
[334723756,1723507869348,-153.0,0.00016438,2]
[334723757,1723507869357,-153.0,0.00016438,2]
[334723758,1723507869366,-153.0,0.00016438,2]
[334723759,1723507869375,-153.0,0.00016438,2]
[334723760,1723507869384,-153.0,0.00016438,2]
[334723761,1723507869393,-153.0,0.00016438,2]
[334723762,1723507869402,-153.0,0.00016438,2]
[334723763,1723507869411,-153.0,0.00016438,2]
[334723764,1723507869420,-153.0,0.00016438,2]
[334723765,1723507869429,-153.0,0.00016438,2]
[334723766,1723507869438,-153.0,0.00016438,2]
[334723767,1723507869446,-153.0,0.00016438,2]
[334723768,1723507869458,-153.0,0.00016438,2]
[334723769,1723507869468,-153.0,0.00016438,2]
[334723770,1723507869477,-153.0,0.00016438,2]
[334723771,1723507869486,-153.0,0.00016438,2]
[334723772,1723507869495,-153.0,0.00016438,2]
[334723773,1723507869505,-153.0,0.00016438,2]
[334723774,1723507869514,-153.0,0.00016438,2]
[334723775,1723507869522,-153.0,0.00016438,2]
[334723776,1723507869531,-582.446105,0.00016438,2]
[334723777,1723507869541,-582.446105,0.00016438,2]
[334723778,1723507869550,-582.446105,0.00016438,2]
[334723779,1723507869559,-582.446105,0.00016438,2]
[334723780,1723507869568,-582.446105,0.00016438,2]
[334723781,1723507869577,-582.446105,0.00016438,2]
[334723782,1723507869585,-582.446105,0.00016438,2]
[334723783,1723507869594,-582.446105,0.00016438,2]
[334723784,1723507869603,-582.446105,0.00016438,2]
[334723785,1723507869714,-582.446105,0.00016438,2]
[334723786,1723507869723,-582.446105,0.00016438,2]
[334723787,1723507869731,-582.446105,0.00016438,2]
[334723788,1723507869741,-582.446105,0.00016438,2]
[334723789,1723507869750,-582.446105,0.00016438,2]
[334723790,1723507869759,-582.446105,0.00016438,2]
[334723791,1723507869769,-582.446105,0.00016438,2]
[334723792,1723507869778,-582.446105,0.00016438,2]
[334723793,1723507869788,-582.446105,0.00016438,2]
[334723794,1723507869798,-582.446105,0.00016438,2]
[334723795,1723507869807,-582.446096,0.00016438,2]
[334723796,1723507869816,-151.0,0.00016438,2]
[334723797,1723507869826,-1204.92,0.00016493,2]
[334723798,1723507869835,-891.86,0.00016493,2]
[334723799,1723507869844,-766.88,0.00016493,2]
[334723800,1723507869853,-277.46411292,0.00016532,2]
[334723801,1723507869862,-207.3387286,0.00016539,2]
[334723802,1723507869871,-500.0,0.00016592,2]
[334723803,1723507869881,-2071.47,0.00016592,2]
[334723804,1723507869891,-7738.72,0.00016592,2]
[334723805,1723507869900,-1399.62,0.00016592,2]
[334723806,1723507869909,-403.8,0.00016597,2]
[334723807,1723507869918,-891.99,0.00016602,2]
[334723808,1723507869929,-500.0,0.00016602,2]
[334723809,1723507869940,-4531.63,0.00016602,2]
[334723810,1723507869949,-4572.2,0.00016602,2]
[334723811,1723507869963,-1413.72,0.00016602,2]
[334723812,1723507869973,-1535.96,0.00016602,2]
[334723813,1723507869983,-1232.7,0.00016602,2]
[334723814,1723507869993,-1581.75,0.00016602,2]
[334723815,1723507870003,-500.0,0.00016602,2]
[334723816,1723507870013,-1660.52,0.00016602,2]
[334723817,1723507870023,-500.0,0.00016602,2]
[334723818,1723507870033,-1077.89,0.00016602,2]
[334723819,1723507870044,-7880.3,0.00016602,2]
[334723820,1723507870054,-500.0,0.00016603,2]
[334723821,1723507870063,-500.0,0.00016603,2]
[334723822,1723507870075,-674.1,0.00016603,2]
[334723823,1723507870085,-509.97154592,0.00016603,2]
[334723824,1723507870095,-577.84,0.00016603,2]
[334723825,1723507870105,-699.4,0.00016603,2]
[334723826,1723507870114,-629.92,0.00016603,2]
[334723827,1723507870124,-500.0,0.00016603,2]
[334723828,1723507870133,-500.0,0.00016603,2]
[334723829,1723507870142,-500.0,0.00016603,2]
[334723830,1723507870151,-838.38,0.00016603,2]
[334723831,1723507870160,-500.0,0.00016603,2]
[334723832,1723507870169,-500.0,0.00016603,2]
[334723833,1723507870178,-500.0,0.00016603,2]
[334723834,1723507870187,-527.51,0.00016603,2]
[334723835,1723507870196,-500.0,0.00016603,2]
[334723836,1723507870209,-899.59,0.00016603,2]
[334723837,1723507870217,-662.72,0.00016603,2]
[334723838,1723507870227,-500.0,0.00016603,2]
[334723839,1723507870236,-930.41,0.00016603,2]
[334723840,1723507870245,-1528.05,0.00016603,2]
[334723841,1723507870256,-796.66,0.00016603,2]
[334723842,1723507870265,-1373.35,0.00016603,2]
[334723843,1723507870276,-1120.59,0.00016603,2]
[334723844,1723507870286,-843.18,0.00016603,2]
[334723845,1723507870296,-1471.67,0.00016603,2]
[334723846,1723507870306,-250.09006804,0.00016603,2]
[334723847,1723507870318,-500.0,0.00016603,2]
[334723848,1723507870329,-912.85,0.00016603,2]
[334723849,1723507870339,-1170.09,0.00016603,2]
[334723850,1723507870352,-873.34,0.00016603,2]
[334723851,1723507870363,-500.0,0.00016603,2]
[334723852,1723507870373,-639.61,0.00016603,2]
[334723853,1723507870384,-4137.7,0.00016603,2]
[334723854,1723507870394,-500.0,0.00016603,2]
[334723855,1723507870405,-935.03,0.00016603,2]
[334723856,1723507870413,-1462.61,0.00016603,2]
[334723857,1723507870422,-633.08,0.00016603,2]
[334723858,1723507870431,-680.88,0.00016603,2]
[334723859,1723507870440,-768.08,0.00016603,2]
[334723860,1723507870449,-756.12,0.00016603,2]
[334723861,1723507870461,-500.0,0.00016603,2]
[334723862,1723507870471,-500.0,0.00016603,2]
[334723863,1723507870482,-885.75,0.00016603,2]
[334723864,1723507870492,-1515.15,0.00016603,2]
[334723865,1723507870502,-500.0,0.00016603,2]
[334723866,1723507870514,-530.7,0.00016603,2]
[334723867,1723507870525,-638.77,0.00016613,2]
[334723868,1723507870536,-3783.3,0.00016613,2]